lending/lending_fUSD_20251114
["ID","MTS","AMOUNT","RATE_DAILY","PERIOD"]
[393972665,1763149839525,-150.0,0.00017269,2]
[393972666,1763149839535,-150.0,0.00017269,2]
[393972667,1763149839545,-200.0,0.00017269,2]
[393972668,1763149839555,-500.0,0.0001727,2]
[393972669,1763149839565,-500.0,0.0001727,2]
[393972670,1763149839575,-487.0,0.0001727,2]
[393972671,1763149839584,-150.0,0.0001727,2]
[393972673,1763149839593,-150.0,0.0001727,2]
[393972675,1763149839603,-423.0,0.0001727,2]
[393972677,1763149839613,-500.0,0.0001727,2]
[393972679,1763149839623,-350.0,0.0001727,2]
[393972680,1763149839633,-1375.17,0.00017273,2]
[393972682,1763149839642,-166.66,0.00017279,2]
[393972684,1763149839651,-300.0,0.00017299,2]
[393972686,1763149839661,-2000.0,0.000173,2]
[393972689,1763149839670,-776.58783816,0.00017339,2]
[393972691,1763149839680,-180.50716237,0.00017398,2]
[393972694,1763149839689,-150.0,0.000174,2]
[393972698,1763149839700,-150.0,0.000174,2]
[393972701,1763149839710,-150.0,0.000174,2]
[393972702,1763149839719,-177.08959259,0.000174,2]
[393972704,1763149839729,-1495.99777276,0.000174,2]
[393972706,1763149839738,-157.87599009,0.000174,2]
[393972709,1763149839751,-200.0,0.00017406,2]
[393972712,1763149839760,-250.0,0.00017406,2]
[393972715,1763149839769,-250.0,0.00017406,2]
[393972718,1763149839779,-500.0,0.00017407,2]
[393972721,1763149839789,-500.0,0.00017407,2]
[393972724,1763149839799,-487.0,0.00017407,2]
[393972728,1763149839808,-200.0,0.00017407,2]
[393972730,1763149839817,-192.40019802,0.00017407,2]
[393972734,1763149839828,-423.0,0.00017407,2]
[393972737,1763149839837,-300.0,0.00017407,2]
[393972740,1763149839847,-195.0,0.00017415,2]
[393972742,1763149839856,-989.69806493,0.00017415,2]
[393972744,1763149839865,-195.0,0.00017415,2]
[393972746,1763149839875,-300.0,0.00017415,2]
[393972748,1763149839885,-300.0,0.00017415,2]
[393972750,1763149839894,-300.0,0.00017415,2]
[393972752,1763149839904,-300.0,0.00017415,2]
[393972754,1763149839914,-2481.33936088,0.00017415,4]
[393972756,1763149839924,-1767.91981138,0.00017415,2]
[393972758,1763149839934,-193.0,0.00017415,2]
[393972760,1763149839944,-150.25460152,0.00017415,2]
[393972762,1763149839953,-250.0,0.00017415,2]
[393972764,1763149839963,-300.0,0.00017415,2]
[393972766,1763149839973,-300.0,0.00017415,2]
[393972768,1763149839983,-195.0,0.00017415,2]
[393972770,1763149839994,-194.78840876,0.00017415,2]
[393972772,1763149840004,-250.0,0.00017415,2]
[393972774,1763149840014,-5000.0,0.00017415,4]
[393972776,1763149840024,-388.3288932,0.00017415,2]
[393972778,1763149840034,-565.0,0.00017447,2]
[393972781,1763149840047,-776.58783816,0.00017451,2]
[393972783,1763149840057,-2200.0,0.000175,6]
[393972784,1763149840067,-500.0,0.00017521,2]
[393972785,1763149840078,-1000.0,0.00017521,2]
[393972786,1763149840088,-1000.0,0.00017521,2]
[393972787,1763149840097,-500.0,0.00017521,2]
[393972788,1763149840107,-1003.58550355,0.00017521,2]
[393972789,1763149840117,-1000.0,0.00017521,2]
[393972790,1763149840128,-187.0,0.00017523,2]
[393972791,1763149840138,-420.0,0.00017523,2]
[393972792,1763149840147,-500.0,0.00017544,2]
[393972793,1763149840157,-500.0,0.00017544,2]
[393972794,1763149840167,-487.0,0.00017544,2]
[393972795,1763149840176,-423.0,0.00017544,2]
[393972796,1763149840188,-1375.17,0.00017547,2]
[393972797,1763149840197,-168.0,0.00017557,2]
[393972798,1763149840207,-776.58783816,0.00017563,2]
[393972799,1763149840217,-1495.99777276,0.00017567,2]
[393972800,1763149840227,-157.87599009,0.00017567,2]
[393972801,1763149840236,-2800.0,0.000176,6]
[393972802,1763149840249,-1680.0,0.00017611,2]
[393972803,1763149840259,-935.0,0.00017625,2]
[393972804,1763149840268,-565.0,0.00017629,2]
[393972805,1763149840279,-776.58783816,0.00017676,2]
[393972806,1763149840288,-500.0,0.00017681,2]
[393972807,1763149840298,-500.0,0.00017681,2]
[393972808,1763149840309,-487.0,0.00017681,2]
[393972809,1763149840318,-423.0,0.00017681,2]
[393972810,1763149840327,-403.0,0.000177,5]
[393972811,1763149840337,-500.0,0.000177,6]
[393972812,1763149840346,-450.0,0.00017715,2]
[393972813,1763149840356,-1753.0,0.00017726,2]
[393972814,1763149840366,-1495.99777276,0.00017733,2]
[393972815,1763149840376,-157.87599009,0.00017733,2]
[393972816,1763149840386,-776.58783816,0.00017788,2]
[393972817,1763149840396,-500.0,0.000178,6]
[393972818,1763149840405,-150.0,0.00017808,2]
[393972819,1763149840415,-565.0,0.00017814,2]
[393972820,1763149840424,-500.0,0.00017818,2]
[393972822,1763149840434,-500.0,0.00017818,2]
[393972823,1763149840444,-487.0,0.00017818,2]
[393972824,1763149840453,-423.0,0.00017818,2]
[393972825,1763149840464,-2500.0,0.00017821,3]
[393972826,1763149840477,-1375.17,0.00017821,2]
[393972827,1763149840487,-2500.0,0.0001783,3]
[393972829,1763149840497,-2500.0,0.00017838,3]
[393972830,1763149840506,-565.0,0.00017842,2]
[393972832,1763149840516,-2500.0,0.00017847,3]
[393972833,1763149840526,-2500.0,0.00017856,3]
[393972834,1763149840536,-565.0,0.00017857,2]
[393972835,1763149840545,-2500.0,0.00017865,3]
[393972836,1763149840555,-2500.0,0.00017874,3]
[393972837,1763149840565,-2500.0,0.00017882,3]
[393972838,1763149840574,-500.0,0.0001789,2]
[393972839,1763149840584,-2500.0,0.00017891,3]
[393972840,1763149840593,-177.08959259,0.000179,2]
[393972841,1763149840603,-2500.0,0.000179,3]
[393972842,1763149840612,-2500.0,0.000179,3]
[393972843,1763149840621,-776.58783816,0.000179,2]
[393972844,1763149840631,-500.0,0.000179,6]
[393972845,1763149840640,-1495.99777276,0.000179,2]
[393972846,1763149840651,-493.77530051,0.000179,2]
[393972847,1763149840660,-6218.58077158,0.000179,2]
[393972848,1763149840670,-215.2859281,0.000179,2]
[393972849,1763149840679,-157.87599009,0.000179,2]
[393972850,1763149840689,-151.43976194,0.000179,3]
[393972851,1763149840699,-448.29205048,0.000179,2]
[393972852,1763149840708,-26324.87884791,0.00017914,2]
[393972853,1763149840717,-228.9962114,0.00017945,2]
[393972854,1763149840727,-500.0,0.00017955,2]
[393972855,1763149840736,-500.0,0.00017955,2]
[393972856,1763149840748,-487.0,0.00017955,2]
[393972857,1763149840758,-423.0,0.00017955,2]
[393972858,1763149840767,-565.0,0.00017958,2]
[393972859,1763149840777,-565.0,0.00017967,2]
[393972860,1763149840787,-181.0,0.00017973,2]
[393972861,1763149840797,-255.09463289,0.00017973,2]
[393972862,1763149840806,-161.40495423,0.00017973,2]
[393972863,1763149840816,-500.0,0.00017973,2]
[393972864,1763149840825,-500.0,0.00017973,2]
[393972865,1763149840835,-172.40826591,0.00017973,2]
[393972866,1763149840845,-500.0,0.00017973,2]
[393972867,1763149840854,-500.0,0.00017973,2]
[393972868,1763149840864,-500.0,0.00017973,2]
[393972869,1763149840873,-500.0,0.00017973,2]
[393972870,1763149840882,-500.0,0.00017973,2]
[393972871,1763149840891,-500.84911598,0.00017973,2]
[393972872,1763149840901,-500.0,0.00017973,2]
[393972873,1763149840911,-500.0,0.00017973,2]
[393972874,1763149840920,-500.0,0.00017973,2]
[393972875,1763149840929,-500.0,0.00017973,2]
[393972876,1763149840938,-500.0,0.00017973,2]
[393972877,1763149840947,-500.57141047,0.00017973,2]
[393972878,1763149840957,-500.0,0.00017973,2]
[393972879,1763149840966,-500.0,0.00017973,2]
[393972880,1763149840975,-500.0,0.00017973,2]
[393972881,1763149840985,-500.0,0.00017973,2]
[393972882,1763149840995,-500.0,0.00017973,2]
[393972883,1763149841005,-500.0,0.00017973,2]
[393972884,1763149841014,-500.0,0.00017973,2]
[393972885,1763149841024,-500.0,0.00017973,2]
[393972886,1763149841034,-500.0,0.00017973,2]
[393972887,1763149841043,-440.46876719,0.00017973,2]
[393972888,1763149841057,-500.0,0.00017973,2]
[393972889,1763149841066,-500.0,0.00017973,2]
[393972890,1763149841076,-500.0,0.00017973,2]
[393972891,1763149841087,-500.0,0.00017973,2]
[393972892,1763149841096,-500.0,0.00017973,2]
[393972893,1763149841105,-500.0,0.00017973,2]
[393972894,1763149841115,-500.0,0.00017973,2]
[393972895,1763149841127,-368.18598492,0.00017989,2]
[393972896,1763149841136,-565.0,0.00017989,2]
[393972897,1763149841146,-704.74535113,0.0001799,2]
[393972898,1763149841156,-704.74535113,0.0001799,2]
[393972899,1763149841165,-565.0,0.00017995,2]
[393972900,1763149841175,-300.0,0.00017999,2]
[393972901,1763149841185,-3156808.05087347,0.00018,2]
[393972902,1763149841350,-687.68075875,0.00018,2]
[393972903,1763149841361,-563.94852852,0.00018,2]
[393972904,1763149841378,-141735.63482038,0.00018,2]
[393972905,1763149841390,-235870.11772698,0.00018,2]
[393972906,1763149841399,-62692.24746256,0.00018,2]
[393972907,1763149841410,-6604.34226914,0.00018,2]
[393972908,1763149841510,-180.50716237,0.000179,2]
[393972909,1763149841520,-24283.44732772,0.00018,2]
[393972910,1763149841550,-2318.75904968,0.00018,2]
[393972918,1763149843271,-158.86102011,0.00016986,2]
[393972919,1763149843281,-2841.34811018,0.00018,2]
[393972922,1763149845906,-150.0,0.0001726,2]
[393972923,1763149845917,-101.47211716,0.00017397,2]
[393972924,1763149846173,-48.52788284,0.00017397,2]
[393972925,1763149846182,-150.0,0.00017534,2]
[393972926,1763149846192,-200.0,0.00017671,2]
[393972927,1763149846202,-557.47211716,0.00018,2]
[393972932,1763149991041,2481.33936088,0.00016552,4]
[393974007,1763150617729,-749.86,0.00024658,30]
[393974008,1763150617764,-215.32489497,0.00029071,30]
[393974009,1763150617789,-749.86,0.00029704,30]
[393974010,1763150617820,-500.0,0.00031175,120]
[393974011,1763150617846,-1964.84692277,0.000315,120]
[393974012,1763150617871,-151.0,0.00031598,31]
[393974013,1763150617897,-157.004935,0.00031598,31]
[393974014,1763150617923,-151.0,0.00031598,31]
[393974015,1763150617948,-151.0,0.00031598,31]
[393974016,1763150617972,-159.229738,0.00031598,31]
[393974017,1763150617998,-151.0,0.00031598,31]
[393974018,1763150618023,-151.0,0.00031598,31]
[393974019,1763150618050,-151.0,0.00031598,31]
[393974020,1763150618076,-151.0,0.00031598,31]
[393974021,1763150618103,-151.0,0.00031598,31]
[393974022,1763150618137,-153.713462,0.00031598,31]
[393974023,1763150618164,-278.750171,0.00031598,31]
[393974024,1763150618192,-151.0,0.00031598,31]
[393974025,1763150618217,-155.052803,0.00031598,31]
[393974026,1763150618245,-151.0,0.00031598,31]
[393974027,1763150618270,-151.0,0.00031598,31]
[393974028,1763150618297,-151.0,0.00031598,31]
[393974029,1763150618543,-153.735005,0.00031598,31]
[393974030,1763150618573,-151.0,0.00031598,31]
[393974031,1763150618598,-151.0,0.00031598,31]
[393974032,1763150618622,-151.0,0.00031598,31]
[393974033,1763150618648,-155.572859,0.00031598,31]
[393974034,1763150618674,-212.626187,0.00031598,31]
[393974035,1763150618699,-153.651909,0.00031598,31]
[393974036,1763150618723,-151.0,0.00031598,31]
[393974037,1763150618749,-151.0,0.00031598,31]
[393974038,1763150618774,-151.0,0.00031598,31]
[393974039,1763150618803,-321.897058,0.00031598,31]
[393974040,1763150618828,-321.897058,0.00031598,31]
[393974041,1763150618852,-321.897058,0.00031598,31]
[393974042,1763150618877,-321.897058,0.00031598,31]
[393974043,1763150618906,-151.0,0.00031598,31]
[393974044,1763150618932,-181.476825,0.00031598,31]
[393974045,1763150618960,-151.0,0.00031698,31]
[393974046,1763150618987,-151.0,0.00031698,31]
[393974047,1763150619015,-151.0,0.00031698,31]
[393974048,1763150619041,-151.0,0.00031698,31]
[393974049,1763150619073,-151.0,0.00031698,31]
[393974050,1763150619101,-1946.1314018,0.00032,120]
[393974051,1763150619128,-150.0,0.00032877,60]
[393974052,1763150619155,-150.0,0.00033014,60]
[393974053,1763150619182,-150.0,0.00033151,60]
[393974054,1763150619223,-150.0,0.00033288,60]
[393974055,1763150619257,-150.0,0.00033425,60]
[393974056,1763150619285,-250.0,0.00033562,60]
[393974057,1763150619319,-152.999998,0.00034,120]
[393974058,1763150619349,-749.86,0.00034751,30]
[393974059,1763150619377,-251.54118551,0.00034915,30]
[393974060,1763150619404,-150.0,0.00034915,30]
[393974061,1763150619430,-203.04962929,0.00035,30]
[393974062,1763150619457,-170.90146133,0.00035,30]
[393974063,1763150619482,-3221.62181548,0.00035,120]
[393974064,1763150619507,-198.32164368,0.0003561,120]
[393974065,1763150619533,-208.41367534,0.00035628,120]
[393974066,1763150619561,-151.0,0.00036,31]
[393974067,1763150619586,-151.0,0.00036,31]
[393974068,1763150619611,-151.0,0.00036,31]
[393974069,1763150619637,-151.0,0.00036,31]
[393974070,1763150619662,-151.0,0.00036,31]
[393974071,1763150619688,-151.0,0.00036,31]
[393974072,1763150619712,-151.0,0.00036,31]
[393974073,1763150619738,-151.0,0.00036,31]
[393974074,1763150619763,-151.0,0.00036,31]
[393974075,1763150619787,-151.0,0.00036,31]
[393974076,1763150619814,-151.0,0.00036,30]
[393974077,1763150619839,-151.0,0.00036,30]
[393974078,1763150619864,-151.0,0.00036,31]
[393974079,1763150619889,-151.0,0.00036,31]
[393974080,1763150619914,-156.698818,0.00036,31]
[393974081,1763150619941,-151.0,0.00036,31]
[393974082,1763150619966,-184.66,0.000361,33]
[393974083,1763150619990,-2000.0,0.00036182,120]
[393974084,1763150620018,-151.0,0.00036365,31]
[393974085,1763150620044,-151.0,0.00036365,31]
[393974086,1763150620069,-151.0,0.00036365,31]
[393974087,1763150620094,-151.0,0.00036365,31]
[393974088,1763150620119,-151.0,0.00036365,31]
[393974089,1763150620142,-321.897058,0.00036365,31]
[393974090,1763150620167,-321.897058,0.00036365,31]
[393974091,1763150620191,-321.897058,0.00036365,31]
[393974092,1763150620216,-321.897058,0.00036365,31]
[393974093,1763150620240,-151.0,0.00036365,31]
[393974094,1763150620264,-151.0,0.00036391,31]
[393974095,1763150620293,-151.0,0.00036391,31]
[393974096,1763150620322,-167.0,0.00037741,120]
[393974097,1763150620348,-168.0,0.00037741,120]
[393974098,1763150620374,-151.0,0.0003797,31]
[393974099,1763150620400,-151.0,0.0003797,31]
[393974100,1763150620425,-151.0,0.0003797,31]
[393974101,1763150620452,-227.168976,0.0003797,31]
[393974102,1763150620477,-151.0,0.0003797,31]
[393974103,1763150620504,-151.0,0.0003797,30]
[393974104,1763150620529,-176.698244,0.0003797,30]
[393974105,1763150620553,-151.0,0.0003797,31]
[393974106,1763150620577,-151.0,0.0003797,31]
[393974107,1763150620602,-252.158924,0.0003797,31]
[393974108,1763150620627,-151.0,0.00038,31]
[393974109,1763150620651,-151.0,0.00038,31]
[393974110,1763150620676,-151.0,0.00038,31]
[393974111,1763150620699,-151.0,0.00038,31]
[393974112,1763150620723,-321.897058,0.00038,31]
[393974113,1763150620747,-321.897058,0.00038,31]
[393974114,1763150620770,-321.897058,0.00038,31]
[393974115,1763150620794,-321.897058,0.00038,31]
[393974116,1763150620818,-151.0,0.00038,31]
[393974117,1763150620843,-500.0,0.00038356,30]
[393974118,1763150620870,-158.73,0.00038605,120]
[393974119,1763150620895,-500.0,0.0003863,30]
[393974120,1763150620922,-158.73,0.00038705,120]
[393974121,1763150620948,-158.73,0.00038805,120]
[393974122,1763150620975,-500.01,0.00038904,30]
[393974123,1763150621152,-158.73,0.00038905,120]
[393974124,1763150621179,-158.73,0.00039005,120]
[393974125,1763150621205,-158.73,0.00039105,120]
[393974126,1763150621231,-158.73,0.00039205,120]
[393974127,1763150621257,-158.73,0.00039305,120]
[393974128,1763150621283,-158.73,0.00039405,120]
[393974129,1763150621316,-158.73,0.00039505,120]
[393974130,1763150621343,-173868.10849312,0.000396,120]
[393974131,1763150621369,-1088.8,0.000396,30]
[393974132,1763150621394,-158.73,0.00039605,120]
[393974133,1763150621418,-167.0,0.00039628,120]
[393974134,1763150621442,-168.0,0.00039628,120]
[393974135,1763150621471,-158.77,0.00039705,120]
[393974136,1763150621496,-151.0,0.00039798,120]
[393974137,1763150621521,-151.0,0.00039798,30]
[393974138,1763150621544,-749.86,0.00039798,30]
[393974139,1763150621568,-151.0,0.0003986,120]
[393974140,1763150621592,-151.0,0.0003986,120]
[393974141,1763150621618,-7432.36370147,0.0003988,30]
[393974142,1763150621643,-151.0,0.0003988,120]
[393974143,1763150621668,-151.0,0.0003988,120]
[393974144,1763150621693,-151.0,0.00039999,120]
[393974145,1763150621720,-478.82688331,0.0004,30]
[393974146,1763150621745,-478.82688331,0.0004,120]
[393974147,1763150621772,-1088.8,0.0004032,120]
[393974148,1763150621798,-695.47,0.0004056,30]
[393974149,1763150621826,-151.0,0.00040977,120]
[393974150,1763150621851,-151.0,0.00040977,120]
[393974151,1763150621876,-151.0,0.00040977,120]
[393974152,1763150621901,-206.554516,0.00040977,120]
[393974153,1763150621926,-321.897058,0.00040977,120]
[393974154,1763150621950,-321.897058,0.00040977,120]
[393974155,1763150621973,-321.897058,0.00040977,120]
[393974156,1763150621997,-321.897058,0.00040977,120]
[393974157,1763150622025,-300.0,0.00041,30]
[393974158,1763150622051,-5000.0,0.00041,120]
[393974159,1763150622077,-151.0,0.00041096,60]
[393974160,1763150622101,-276.276572,0.00041096,60]
[393974161,1763150622126,-208.41367534,0.00041108,120]
[393974162,1763150622150,-478.82688331,0.000412,120]
[393974163,1763150622175,-1010.14466705,0.000413,30]
[393974164,1763150622198,-442.47,0.00041315,30]
[393974165,1763150622221,-210.67809692,0.0004134,30]
[393974166,1763150622245,-20248.36049966,0.00041366,30]
[393974167,1763150622267,-5382.0,0.00041368,30]
[393974168,1763150622293,-150.0,0.0004137,30]
[393974169,1763150622318,-151.0,0.00041372,120]
[393974170,1763150622343,-151.0,0.00041372,30]
[393974171,1763150622367,-151.0,0.00041372,120]
[393974172,1763150622391,-151.0,0.00041372,120]
[393974173,1763150622413,-292.4121571,0.00041372,120]
[393974174,1763150622448,-151.0,0.00041381,120]
[393974175,1763150622473,-151.0,0.00041381,120]
[393974176,1763150622497,-151.0,0.00041381,120]
[393974177,1763150622521,-180.18267902,0.00041381,120]
[393974178,1763150622544,-321.897058,0.00041381,120]
[393974179,1763150622567,-321.897058,0.00041381,120]
[393974180,1763150622590,-321.897058,0.00041381,120]
[393974181,1763150622614,-321.897053,0.00041381,120]
[393974182,1763150622638,-189.725263,0.00041381,120]
[393974183,1763150622661,-151.0,0.00041381,120]
[393974184,1763150622684,-468.33243156,0.00041381,30]
[393974185,1763150622708,-1011.98279901,0.00041381,30]
[393974186,1763150622732,-1011.98279901,0.00041381,30]
[393974187,1763150622755,-173378.76429523,0.00041389,30]
[393974188,1763150622780,-150.52,0.000414,30]
[393974189,1763150622804,-187.4,0.000414,30]
[393974190,1763150622829,-705.51,0.00041459,30]
[393974191,1763150622855,-167.0,0.0004161,120]
[393974192,1763150622879,-168.0,0.0004161,120]
[393974193,1763150622901,-1208.02,0.0004164,30]
[393974194,1763150622925,-265.52801431,0.0004195,30]
[393974195,1763150622950,-200.0,0.00042182,120]
[393974196,1763150622975,-713.62,0.00042448,30]
[393974197,1763150623000,-401.66,0.00043066,30]
[393974198,1763150623025,-150.0,0.00043073,30]
[393974199,1763150623049,-200.0,0.00043682,120]
[393974200,1763150623073,-167.0,0.0004369,120]
[393974201,1763150623102,-168.0,0.0004369,120]
[393974202,1763150623126,-500.0,0.00043836,31]
[393974203,1763150623151,-1251.559999,0.00043988,120]
[393974204,1763150623177,-150.0,0.00044,57]
[393974205,1763150623202,-749.86,0.00044845,120]
[393974206,1763150623226,-1111.762,0.00045,72]
[393974207,1763150623252,-690.6,0.00046459,30]
[393974208,1763150623276,-829.65794416,0.00046466,120]
[393974209,1763150623309,-208.41367534,0.00046587,120]
[393974210,1763150623333,-185.62238957,0.000466,120]
[393974211,1763150623357,-187.0193799,0.000466,120]
[393974212,1763150623381,-164.41405035,0.000466,120]
[393974213,1763150623404,-197.64581887,0.000466,120]
[393974214,1763150623428,-232.12761081,0.000466,120]
[393974215,1763150623452,-301.70873826,0.000466,120]
[393974216,1763150623626,-840.48,0.00047133,30]
[393974217,1763150623653,-187.0193799,0.00048,120]
[393974218,1763150623678,-164.41405035,0.00048,120]
[393974219,1763150623702,-478.08,0.00048262,30]
[393974220,1763150623726,-478.08,0.00048262,30]
[393974221,1763150623751,-478.08,0.00048262,30]
[393974222,1763150623774,-478.08,0.00048262,30]
[393974223,1763150623799,-478.08,0.00048262,30]
[393974224,1763150623824,-478.08,0.00048262,30]
[393974225,1763150623848,-478.08,0.00048262,30]
[393974226,1763150623873,-478.08,0.00048262,30]
[393974227,1763150623898,-478.08,0.00048262,30]
[393974228,1763150623923,-478.08,0.00048262,30]
[393974229,1763150623948,-478.08,0.00048262,30]
[393974230,1763150623973,-478.08,0.00048262,30]
[393974231,1763150623997,-478.08,0.00048262,30]
[393974232,1763150624020,-478.08,0.00048262,30]
[393974233,1763150624043,-478.08,0.00048262,30]
[393974234,1763150624067,-478.08,0.00048262,30]
[393974235,1763150624091,-478.08,0.00048262,30]
[393974236,1763150624116,-177.26,0.00048454,30]
[393974237,1763150624141,-550.1,0.00048454,30]
[393974238,1763150624167,-550.1,0.00048454,30]
[393974239,1763150624192,-177.26,0.00048454,30]
[393974240,1763150624217,-177.26,0.00048454,30]
[393974241,1763150624240,-550.1,0.00048454,30]
[393974242,1763150624268,-550.1,0.00048454,30]
[393974243,1763150624295,-177.26,0.00048454,30]
[393974244,1763150624318,-177.26,0.00048454,30]
[393974245,1763150624342,-550.1,0.00048454,30]
[393974246,1763150624368,-550.1,0.00048454,30]
[393974247,1763150624393,-177.26,0.00048454,30]
[393974248,1763150624416,-550.1,0.00048454,30]
[393974249,1763150624446,-177.26,0.00048454,30]
[393974250,1763150624471,-550.1,0.00048454,30]
[393974251,1763150624494,-177.26,0.00048454,30]
[393974252,1763150624518,-177.26,0.00048454,30]
[393974253,1763150624542,-550.1,0.00048454,30]
[393974254,1763150624567,-550.1,0.00048454,30]
[393974255,1763150624590,-177.26,0.00048454,30]
[393974256,1763150624614,-550.1,0.00048454,30]
[393974257,1763150624638,-177.26,0.00048454,30]
[393974258,1763150624662,-177.26,0.00048454,30]
[393974259,1763150624686,-550.1,0.00048454,30]
[393974260,1763150624709,-177.26,0.00048454,30]
[393974261,1763150624734,-550.1,0.00048454,30]
[393974262,1763150624757,-550.1,0.00048454,30]
[393974263,1763150624780,-177.26,0.00048454,30]
[393974264,1763150624803,-550.1,0.00048454,30]
[393974265,1763150624827,-177.26,0.00048454,30]
[393974266,1763150624850,-177.26,0.00048454,30]
[393974267,1763150624874,-550.1,0.00048454,30]
[393974268,1763150624898,-550.1,0.00048454,30]
[393974269,1763150624922,-177.26,0.00048454,30]
[393974270,1763150624947,-177.26,0.00048454,30]
[393974271,1763150624972,-550.1,0.00048454,30]
[393974272,1763150624996,-550.1,0.00048454,30]
[393974273,1763150625022,-177.26,0.00048454,30]
[393974274,1763150625046,-550.1,0.00048454,30]
[393974275,1763150625073,-177.26,0.00048454,30]
[393974276,1763150625099,-177.26,0.00048454,30]
[393974277,1763150625128,-550.1,0.00048454,30]
[393974278,1763150625153,-550.1,0.00048454,30]
[393974279,1763150625181,-177.26,0.00048454,30]
[393974280,1763150625206,-550.1,0.00048454,30]
[393974281,1763150625231,-177.26,0.00048454,30]
[393974282,1763150625255,-550.1,0.00048454,30]
[393974283,1763150625278,-177.26,0.00048454,30]
[393974284,1763150625305,-550.1,0.00048454,30]
[393974285,1763150625328,-550.1,0.00048454,30]
[393974286,1763150625352,-550.1,0.00048454,30]
[393974287,1763150625376,-550.1,0.00048454,30]
[393974288,1763150625398,-550.1,0.00048454,30]
[393974289,1763150625421,-550.1,0.00048454,30]
[393974290,1763150625446,-550.1,0.00048454,30]
[393974291,1763150625469,-550.1,0.00048454,30]
[393974292,1763150625492,-550.1,0.00048454,30]
[393974293,1763150625515,-167.71,0.00048508,30]
[393974294,1763150625538,-150.0,0.00048508,30]
[393974295,1763150625561,-150.0,0.00048508,30]
[393974296,1763150625584,-478.08,0.00048645,30]
[393974297,1763150625606,-478.08,0.00048645,30]
[393974298,1763150625630,-478.08,0.00048645,30]
[393974299,1763150625653,-478.08,0.00048645,30]
[393974300,1763150625677,-478.08,0.00048645,30]
[393974301,1763150625701,-478.08,0.00048645,30]
[393974302,1763150625724,-478.08,0.00048645,30]
[393974303,1763150625748,-478.08,0.00048645,30]
[393974304,1763150625772,-478.08,0.00048645,30]
[393974305,1763150625795,-478.08,0.00048645,30]
[393974306,1763150625818,-478.08,0.00048645,30]
[393974307,1763150625842,-478.08,0.00048645,30]
[393974308,1763150625867,-478.08,0.00048645,30]
[393974309,1763150625891,-478.08,0.00048645,30]
[393974310,1763150625914,-478.08,0.00048645,30]
[393974311,1763150626076,-478.08,0.00048645,30]
[393974312,1763150626101,-478.08,0.00048645,30]
[393974313,1763150626125,-478.08,0.00048645,30]
[393974314,1763150626149,-737.8,0.000487,120]
[393974315,1763150626174,-187.39,0.00048782,30]
[393974316,1763150626199,-550.1,0.00048782,30]
[393974317,1763150626223,-177.26,0.00048782,30]
[393974318,1763150626247,-550.1,0.00048782,30]